fUSD/lending_fUSD_20240412
["ID","MTS","AMOUNT","RATE_DAILY","PERIOD"]
[322344283,1712956702725,810.07,0.00049315,120]
[322344284,1712956702773,1027.06,0.00047397,31]
[322344285,1712956702818,999.42,0.00049041,31]
[322344286,1712956702893,1027.06,0.00047671,31]
[322344287,1712956702939,999.42,0.00049315,120]
[322344288,1712956703175,1027.06,0.00047945,31]
[322344289,1712956703454,1027.06,0.00048219,31]
[322344290,1712956703735,1060.29,0.00046575,31]
[322344291,1712956704022,500.0,0.00046575,31]
[322344292,1712956704062,1060.29,0.00046849,31]
[322344293,1712956704109,1027.06,0.00048493,31]
[322344294,1712956704152,500.0,0.00046575,31]
[322344295,1712956704287,500.0,0.00046849,31]
[322344296,1712956704336,1060.29,0.00047123,31]
[322344297,1712956704440,500.0,0.00046849,31]
[322344298,1712956704550,500.0,0.00047123,31]
[322344299,1712956704642,1060.29,0.00047397,31]
[322344300,1712956704764,1027.06,0.00048767,31]
[322344301,1712956704818,500.0,0.00047397,31]
[322344302,1712956704979,1739.9,0.00046575,31]
[322344303,1712956705036,500.0,0.00047123,31]
[322344304,1712956705085,1027.06,0.00049041,31]
[322344305,1712956705128,640.67957175,0.00047671,31]
[322344306,1712956705222,500.0,0.00046575,31]
[322344307,1712956705265,1739.9,0.00046849,31]
[322344308,1712956705304,1060.29,0.00047671,31]
[322344309,1712956705358,500.0,0.00047397,31]
[322344310,1712956705398,1027.06,0.00049315,120]
[322344311,1712956705445,482.09797358,0.00046575,31]
[322344312,1712956705532,500.0,0.00046849,31]
[322344313,1712956705578,1739.9,0.00047123,31]
[322344314,1712956705621,1060.29,0.00047945,31]
[322344315,1712956705659,500.0,0.00047671,31]
[322344316,1712956705710,500.0,0.00046575,31]
[322344317,1712956705812,1739.9,0.00047397,31]
[322344318,1712956705863,1060.29,0.00048219,31]
[322344319,1712956705962,500.0,0.00047945,31]
[322344320,1712956706059,500.0,0.00046575,31]
[322344321,1712956706108,1739.9,0.00047671,31]
[322344322,1712956706149,500.0,0.00046849,31]
[322344323,1712956706192,1060.29,0.00048493,31]
[322344324,1712956706311,500.0,0.00046849,31]
[322344325,1712956706372,1739.9,0.00047945,31]
[322344326,1712956706411,500.0,0.00047123,31]
[322344327,1712956706450,1060.29,0.00048767,31]
[322344328,1712956706577,500.0,0.00048219,31]
[322344329,1712956706627,500.0,0.00047123,31]
[322344330,1712956706674,500.0,0.00047397,31]
[322344331,1712956706722,1060.29,0.00049041,31]
[322344332,1712956706906,500.0,0.00048493,31]
[322344333,1712956706947,500.0,0.00047397,31]
[322344334,1712956706984,500.0,0.00046575,31]
[322344335,1712956707024,316.56923321,0.00047671,31]
[322344336,1712956707081,1739.9,0.00048219,31]
[322344337,1712956707118,500.0,0.00046575,31]
[322344338,1712956707154,1060.29,0.00049315,120]
[322344339,1712956707189,500.0,0.00048767,31]
[322344340,1712956707225,500.0,0.00047671,31]
[322344341,1712956707272,500.0,0.00046575,31]
[322344342,1712956707319,1739.9,0.00048493,31]
[322344343,1712956707397,500.0,0.00049041,31]
[322344344,1712956707436,500.0,0.00047945,31]
[322344345,1712956707517,500.0,0.00046849,31]
[322344346,1712956707556,500.0,0.00046575,31]
[322344347,1712956707606,1739.9,0.00048767,31]
[322344348,1712956707677,500.0,0.00048219,31]
[322344349,1712956707741,500.0,0.00049315,120]
[322344350,1712956707785,500.0,0.00047123,31]
[322344351,1712956707829,413.95843786,0.00046849,31]
[322344352,1712956707884,1739.9,0.00049041,31]
[322344353,1712956707945,500.0,0.00048493,31]
[322344354,1712956708035,500.0,0.00046575,31]
[322344355,1712956708078,500.0,0.00047397,31]
[322344356,1712956708170,1739.9,0.00049315,120]
[322344357,1712956708219,500.0,0.00048767,31]
[322344358,1712956708319,511.94877126,0.00046849,31]
[322344359,1712956708484,500.0,0.00049041,31]
[322344360,1712956708665,500.0,0.00047671,31]
[322344361,1712956708749,500.0,0.00049315,120]
[322344362,1712956708941,500.0,0.00047945,31]
[322344363,1712956709328,500.0,0.00046575,31]
[322344364,1712956709392,385.96316562,0.00048767,30]
[322344365,1712956709479,500.0,0.00046575,31]
[322344366,1712956709523,500.0,0.00048219,31]
[322344367,1712956709582,500.0,0.00046849,31]
[322344368,1712956709755,500.0,0.00046849,31]
[322344369,1712956709842,1866.47,0.00046575,31]
[322344370,1712956709880,500.0,0.00047123,31]
[322344371,1712956710121,500.0,0.00048493,31]
[322344372,1712956710160,500.0,0.00047397,31]
[322344373,1712956710204,1866.47,0.00046849,31]
[322344374,1712956710244,500.0,0.00046575,31]
[322344375,1712956710285,218.01906463,0.00046575,31]
[322344376,1712956710374,500.0,0.00048767,31]
[322344377,1712956710434,1866.47,0.00047123,31]
[322344378,1712956710481,500.0,0.00046849,31]
[322344379,1712956710517,500.0,0.00047671,31]
[322344380,1712956710637,500.0,0.00049041,31]
[322344381,1712956710706,1866.47,0.00047397,31]
[322344382,1712956710756,451.27038845,0.00047123,31]
[322344383,1712956710797,500.0,0.00047945,31]
[322344384,1712956710908,500.0,0.00049315,120]
[322344385,1712956710986,1866.47,0.00047671,31]
[322344386,1712956711088,500.0,0.00048219,31]
[322344387,1712956711267,1866.47,0.00047945,31]
[322344388,1712956711534,1866.47,0.00048219,31]
[322344389,1712956711575,500.0,0.00046575,31]
[322344390,1712956711634,495.94048159,0.00046575,31]
[322344391,1712956711917,500.0,0.00046849,31]
[322344392,1712956711954,500.0,0.00046575,31]
[322344393,1712956711990,500.0,0.00048493,31]
[322344394,1712956712042,500.0,0.00046575,31]
[322344395,1712956712084,500.0,0.00047123,31]
[322344396,1712956712122,500.0,0.00046849,31]
[322344397,1712956712157,500.0,0.00048767,31]
[322344398,1712956712196,1866.47,0.00048493,31]
[322344399,1712956712337,500.0,0.00047397,31]
[322344400,1712956712400,500.0,0.00047123,31]
[322344401,1712956712442,500.0,0.00049041,31]
[322344402,1712956712484,1866.47,0.00048767,31]
[322344403,1712956712626,500.0,0.00047671,31]
[322344404,1712956712686,500.0,0.00049315,120]
[322344405,1712956712725,500.0,0.00046575,31]
[322344406,1712956712767,1866.47,0.00049041,31]
[322344407,1712956712876,500.0,0.00047945,31]
[322344408,1712956712971,500.0,0.00046849,31]
[322344409,1712956713010,1866.47,0.00049315,120]
[322344410,1712956713047,500.0,0.00047397,31]
[322344411,1712956713162,500.0,0.00048219,31]
[322344412,1712956713285,500.0,0.00047671,31]
[322344413,1712956713499,500.0,0.00046575,31]
[322344414,1712956713547,500.0,0.00048493,31]
[322344415,1712956713601,168.4,0.00047945,31]
[322344416,1712956713709,500.0,0.00046849,31]
[322344417,1712956713784,500.0,0.00048767,31]
[322344418,1712956713964,500.0,0.00047123,31]
[322344419,1712956714004,6948.61,0.00046575,31]
[322344420,1712956714052,176.24,0.00049041,31]
[322344421,1712956714223,164.21283362,0.00047397,31]
[322344422,1712956714261,6948.61,0.00046849,31]
[322344423,1712956714440,584.18,0.00046575,31]
[322344424,1712956714494,6948.61,0.00047123,31]
[322344425,1712956714712,584.18,0.00046849,31]
[322344426,1712956714774,6948.61,0.00047397,31]
[322344427,1712956714831,500.0,0.00046575,31]
[322344428,1712956714972,584.18,0.00047123,31]
[322344429,1712956715042,500.0,0.00046849,31]
[322344430,1712956715244,584.18,0.00047397,31]
[322344431,1712956715349,500.0,0.00047123,31]
[322344432,1712956715394,6948.61,0.00047671,31]
[322344433,1712956715436,500.0,0.00046575,31]
[322344434,1712956715513,584.18,0.00047671,31]
[322344435,1712956715648,6948.61,0.00047945,31]
[322344436,1712956715705,1412.65,0.00046575,31]
[322344437,1712956715752,500.0,0.00046849,31]
[322344438,1712956715801,500.0,0.00047397,31]
[322344439,1712956715854,584.18,0.00047945,31]
[322344440,1712956715926,1412.65,0.00046849,31]
[322344441,1712956715972,6948.61,0.00048219,31]
[322344442,1712956716016,500.0,0.00047123,31]
[322344443,1712956716065,584.18,0.00048219,31]
[322344444,1712956716221,1412.65,0.00047123,31]
[322344445,1712956716269,6948.61,0.00048493,31]
[322344446,1712956716322,171.28,0.00047397,31]
[322344447,1712956716363,500.0,0.00047671,31]
[322344448,1712956716402,500.0,0.00046575,31]
[322344449,1712956716441,584.18,0.00048493,31]
[322344450,1712956716492,500.0,0.00046575,31]
[322344451,1712956716804,6948.61,0.00048767,31]
[322344452,1712956716849,1412.65,0.00047397,31]
[322344453,1712956716888,500.0,0.00047945,31]
[322344454,1712956716930,645.10834379,0.00046849,31]
[322344455,1712956716969,584.18,0.00048767,31]
[322344456,1712956717018,1412.65,0.00047671,31]
[322344457,1712956717054,500.0,0.00048219,31]
[322344458,1712956717095,6948.61,0.00049041,31]
[322344459,1712956717136,584.18,0.00049041,31]
[322344460,1712956717185,500.0,0.00046575,31]
[322344461,1712956717225,500.0,0.00048493,31]
[322344462,1712956717270,6948.61,0.00049315,120]
[322344463,1712956717309,1412.65,0.00047945,31]
[322344464,1712956717350,584.18,0.00049315,120]
[322344465,1712956717392,500.0,0.00046575,31]
[322344466,1712956717434,236.54990894,0.00048767,31]
[322344467,1712956717478,1412.65,0.00048219,31]
[322344468,1712956717519,500.0,0.00046575,31]
[322344469,1712956717557,500.0,0.00046849,31]
[322344470,1712956717602,631.72861892,0.00046575,31]
[322344471,1712956717674,1412.65,0.00048493,31]
[322344472,1712956718650,349.96971228,0.00046849,31]
[322344473,1712956719299,500.0,0.00047123,31]
[322344474,1712956719357,500.0,0.00047397,31]
[322344475,1712956719402,1412.65,0.00048767,31]
[322344476,1712956719444,500.0,0.00046575,31]
[322344477,1712956719530,368.74,0.00047671,31]
[322344478,1712956719576,542.77,0.00046849,31]
[322344479,1712956719639,1412.65,0.00049041,31]
[322344480,1712956719782,500.0,0.00046575,31]
[322344481,1712956719838,1412.65,0.00049315,120]
[322344482,1712956719896,423.11752,0.00049041,45]
[322344483,1712956719950,500.0,0.00046575,31]
[322344484,1712956720248,500.0,0.00046849,31]
[322344485,1712956720291,500.0,0.00046575,31]
[322344486,1712956720333,500.0,0.00046575,31]
[322344487,1712956720378,730.37,0.00046575,31]
[322344488,1712956720531,500.0,0.00046849,31]
[322344489,1712956720568,500.0,0.00046849,31]
[322344490,1712956720688,500.0,0.00047123,31]
[322344491,1712956720868,730.37,0.00046849,31]
[322344492,1712956721009,500.0,0.00047397,31]
[322344493,1712956721157,730.37,0.00047123,31]
[322344494,1712956721459,730.37,0.00047397,31]
[322344495,1712956721647,500.0,0.00047671,31]
[322344496,1712956721740,730.37,0.00047671,31]
[322344497,1712956721897,500.0,0.00046575,31]
[322344498,1712956722161,500.0,0.00047945,31]
[322344499,1712956722224,500.0,0.00046849,31]
[322344500,1712956722264,730.37,0.00047945,31]
[322344501,1712956722456,500.0,0.00047123,31]
[322344502,1712956722576,730.37,0.00048219,31]
[322344503,1712956722634,500.0,0.00048219,31]
[322344504,1712956722738,500.0,0.00047397,31]
[322344505,1712956722837,730.37,0.00048493,31]
[322344506,1712956722908,457.69262992,0.00046575,31]
[322344507,1712956722944,500.0,0.00048493,31]
[322344508,1712956722984,500.0,0.00046575,31]
[322344509,1712956723022,500.0,0.00047671,31]
[322344510,1712956723149,730.37,0.00048767,31]
[322344511,1712956723243,500.0,0.00046849,31]
[322344512,1712956723281,500.0,0.00047945,31]
[322344513,1712956723558,730.37,0.00049041,31]
[322344514,1712956723600,500.0,0.00048767,31]
[322344515,1712956723645,500.0,0.00048219,31]
[322344516,1712956723685,500.0,0.00046575,31]
[322344517,1712956723722,500.0,0.00046575,31]
[322344518,1712956723833,730.37,0.00049315,120]
[322344519,1712956723875,500.0,0.00049041,31]
[322344520,1712956723911,500.0,0.00048493,31]
[322344521,1712956724036,500.0,0.00046849,31]
[322344522,1712956724093,500.0,0.00046575,31]
[322344523,1712956724138,500.0,0.00048767,31]
[322344524,1712956724234,500.0,0.00049315,120]
[322344525,1712956724455,500.0,0.00049041,31]
[322344526,1712956725070,500.0,0.00049315,120]
[322344527,1712956725927,579.02,0.00046575,31]
[322344528,1712956726210,579.02,0.00046849,31]
[322344529,1712956726477,579.02,0.00047123,31]
[322344530,1712956726742,579.02,0.00047397,31]
[322344531,1712956726947,500.0,0.00046575,31]
[322344532,1712956727010,500.0,0.00046575,31]
[322344533,1712956727056,579.02,0.00047671,31]
[322344534,1712956727261,500.0,0.00046849,31]
[322344535,1712956727304,500.0,0.00046849,31]
[322344536,1712956727343,579.02,0.00047945,31]
[322344537,1712956727531,500.0,0.00047123,31]
[322344538,1712956727572,500.0,0.00047123,31]
[322344539,1712956727608,579.02,0.00048219,31]
[322344540,1712956727866,500.0,0.00047397,31]
[322344541,1712956727913,500.0,0.00046575,31]
[322344542,1712956728124,500.0,0.00047671,31]
[322344543,1712956728211,579.02,0.00048493,31]
[322344544,1712956728311,500.0,0.00046849,31]
[322344545,1712956728414,500.0,0.00047945,31]
[322344546,1712956728483,579.02,0.00048767,31]
[322344547,1712956728648,500.0,0.00048219,31]
[322344548,1712956728764,579.02,0.00049041,31]
[322344549,1712956728911,4512.54,0.00046575,31]
[322344550,1712956728954,498.23103612,0.00048493,31]
[322344551,1712956729028,579.02,0.00049315,120]
[322344552,1712956729526,4512.54,0.00046849,31]
[322344553,1712956729675,500.0,0.00046575,31]
[322344554,1712956729800,4512.54,0.00047123,31]
[322344555,1712956730081,4512.54,0.00047397,31]
[322344556,1712956730377,4512.54,0.00047671,31]
[322344557,1712956730499,500.0,0.00046575,31]
[322344558,1712956730737,500.0,0.00046575,31]
[322344559,1712956730965,4512.54,0.00047945,31]
[322344560,1712956731070,500.0,0.00046849,31]
[322344561,1712956731239,4512.54,0.00048219,31]
[322344562,1712956731330,500.0,0.00046849,31]
[322344563,1712956731369,500.0,0.00047123,31]
[322344564,1712956731527,4512.54,0.00048493,31]
[322344565,1712956731626,500.0,0.00047397,31]
[322344566,1712956731818,4512.54,0.00048767,31]
[322344567,1712956732014,500.0,0.00047671,31]
[322344568,1712956732469,500.0,0.00047945,31]
[322344569,1712956732529,4512.54,0.00049041,31]
[322344570,1712956732568,500.0,0.00046575,31]
[322344571,1712956732608,500.0,0.00048219,31]
[322344572,1712956732700,4512.54,0.00049315,120]
[322344573,1712956732832,299.29846555,0.00048493,31]
[322344574,1712956732875,534.97,0.00046575,31]
[322344575,1712956733444,534.97,0.00046849,31]
[322344576,1712956733488,836.24,0.00046575,31]
[322344577,1712956733731,836.24,0.00046849,31]
[322344578,1712956733769,534.97,0.00047123,31]
[322344579,1712956734008,1303.72,0.00046575,31]
[322344580,1712956734048,534.97,0.00047397,31]
[322344581,1712956734117,836.24,0.00047123,31]
[322344582,1712956734285,534.97,0.00047671,31]
[322344583,1712956734327,1303.72,0.00046849,31]
[322344584,1712956734372,836.24,0.00047397,31]
[322344585,1712956734501,500.0,0.00046575,31]
[322344586,1712956734575,534.97,0.00047945,31]
[322344587,1712956734617,1303.72,0.00047123,31]
[322344588,1712956734657,836.24,0.00047671,31]
[322344589,1712956734773,500.0,0.00046849,31]
[322344590,1712956734893,534.97,0.00048219,31]
[322344591,1712956735059,500.0,0.00047123,31]
[322344592,1712956735165,534.97,0.00048493,31]
[322344593,1712956735211,1303.72,0.00047397,31]
[322344594,1712956735251,836.24,0.00047945,31]
[322344595,1712956735290,500.0,0.00047397,31]
[322344596,1712956735327,1448.65,0.00046575,31]
[322344597,1712956735364,500.0,0.00046575,31]
[322344598,1712956735465,1303.72,0.00047671,31]
[322344599,1712956735554,500.0,0.00047671,31]
[322344600,1712956735598,836.24,0.00048219,31]
[322344601,1712956735727,1303.72,0.00047945,31]
[322344602,1712956735772,534.97,0.00048767,31]
[322344603,1712956735816,500.0,0.00047945,31]
[322344604,1712956735857,836.24,0.00048493,31]
[322344605,1712956735900,1448.65,0.00046849,31]
[322344606,1712956736021,1303.72,0.00048219,31]
[322344607,1712956736062,534.97,0.00049041,31]
[322344608,1712956736319,199.23273442,0.00048219,31]
[322344609,1712956736364,836.24,0.00048767,31]
[322344610,1712956736411,1303.72,0.00048493,31]
[322344611,1712956736447,534.97,0.00049315,120]
[322344612,1712956736488,836.24,0.00049041,31]
[322344613,1712956736526,1448.65,0.00047123,31]
[322344614,1712956736562,1303.72,0.00048767,31]
[322344615,1712956736692,836.24,0.00049315,120]
[322344616,1712956736772,1448.65,0.00047397,31]
[322344617,1712956736840,1303.72,0.00049041,31]
[322344618,1712956736890,500.0,0.00046575,31]
[322344619,1712956736941,567.45861084,0.00046575,31]
[322344620,1712956737036,1448.65,0.00047671,31]
[322344621,1712956737129,1303.72,0.00049315,120]
[322344622,1712956737272,500.0,0.00046575,31]
[322344623,1712956737308,1448.65,0.00047945,31]
[322344624,1712956737403,500.0,0.00046575,31]
[322344625,1712956737493,500.0,0.00046849,31]
[322344626,1712956737555,500.0,0.00046849,31]
[322344627,1712956737593,1448.65,0.00048219,31]
[322344628,1712956737689,500.0,0.00046575,31]
[322344629,1712956737809,500.0,0.00047123,31]
[322344630,1712956737847,1448.65,0.00048493,31]
[322344631,1712956737907,500.0,0.00046575,31]
[322344632,1712956738385,500.0,0.00046849,31]
[322344633,1712956738438,1448.65,0.00048767,31]
[322344636,1712956738709,1448.65,0.00049041,31]
[322344637,1712956738749,500.0,0.00047123,31]
[322344638,1712956738786,500.0,0.00048101,30]
[322344639,1712956738970,1448.65,0.00049315,120]
[322344640,1712956739034,500.0,0.00047397,31]
[322344641,1712956739322,500.0,0.00047671,31]
[322344642,1712956739475,500.0,0.00046575,31]
[322344643,1712956739565,500.0,0.00047945,31]
[322344644,1712956739767,500.0,0.00046849,31]
[322344645,1712956739839,500.0,0.00048219,31]
[322344646,1712956739930,643.81,0.00046575,31]
[322344647,1712956740023,348.1089809,0.00047123,31]
[322344648,1712956740082,500.0,0.00048493,31]
[322344649,1712956740136,500.0,0.00046575,31]
[322344650,1712956740196,643.81,0.00046849,31]
[322344651,1712956740364,500.0,0.00048649,30]
[322344652,1712956740404,303.21,0.00048767,31]
[322344653,1712956740454,643.81,0.00047123,31]
[322344654,1712956740723,643.81,0.00047397,31]
[322344655,1712956740761,500.0,0.00046849,31]
[322344656,1712956741006,643.81,0.00047671,31]
[322344657,1712956741046,500.0,0.00047123,31]
[322344658,1712956741289,500.0,0.00046575,31]
[322344659,1712956741332,643.81,0.00047945,31]
[322344660,1712956741660,643.81,0.00048219,31]
[322344661,1712956741951,500.0,0.00046575,31]
[322344662,1712956742039,600.0,0.00049197,30]
[322344663,1712956742148,500.0,0.00046575,31]
[322344664,1712956742243,643.81,0.00048493,31]
[322344665,1712956742282,500.0,0.00046849,31]
[322344666,1712956742646,643.81,0.00048767,31]
[322344667,1712956742685,500.0,0.00047123,31]
[322344668,1712956742725,500.0,0.00046575,31]
[322344669,1712956742771,500.0,0.00047397,31]
[322344670,1712956742815,643.81,0.00049041,31]
[322344671,1712956742900,361.94896809,0.00046849,31]
[322344672,1712956743001,500.0,0.00046575,31]
[322344673,1712956743086,643.81,0.00049315,120]
[322344674,1712956743125,500.0,0.00047671,31]
[322344675,1712956743162,500.0,0.00046575,31]
[322344676,1712956743269,520.21,0.00046849,31]
[322344677,1712956743307,552.67378354,0.00046575,31]
[322344678,1712956743388,500.0,0.00047945,31]
[322344679,1712956743429,500.0,0.00046849,31]
[322344680,1712956743659,500.0,0.00048219,31]
[322344681,1712956743705,500.0,0.00047123,31]
[322344682,1712956744017,500.0,0.00046575,31]
[322344683,1712956744054,500.0,0.00048493,31]
[322344684,1712956744234,2500.0,0.00020798,2]
[322344685,1712956744325,500.0,0.00046849,31]
[322344686,1712956744362,500.0,0.00048767,31]
[322344687,1712956744414,500.0,0.00046575,31]
[322344688,1712956744598,500.0,0.00049041,31]
[322344689,1712956744685,500.0,0.00046849,31]
[322344690,1712956744954,500.0,0.00047123,31]
[322344691,1712956745005,229.95,0.00047123,31]
[322344692,1712956745190,500.0,0.00049315,120]
[322344693,1712956745230,500.0,0.00047397,31]
[322344694,1712956745477,500.0,0.00046575,31]
[322344695,1712956745519,500.0,0.00047671,31]
[322344696,1712956745609,500.0,0.00046575,31]
[322344697,1712956745734,9149.77,0.00046575,31]
[322344698,1712956745776,500.0,0.00046849,31]
[322344699,1712956745823,500.0,0.00047945,31]
[322344700,1712956745871,500.0,0.00046849,31]
[322344701,1712956746028,9149.77,0.00046849,31]
[322344702,1712956746067,500.0,0.00047123,31]
[322344703,1712956746170,440.47725643,0.00047123,31]
[322344704,1712956746310,9149.77,0.00047123,31]
[322344705,1712956746396,500.0,0.00047397,31]
[322344706,1712956746438,500.0,0.00048219,31]
[322344707,1712956746478,500.0,0.00046575,31]
[322344708,1712956746566,500.0,0.00046575,31]
[322344709,1712956746605,9149.77,0.00047397,31]
[322344710,1712956746655,500.0,0.00047671,31]
[322344711,1712956746700,500.0,0.00046575,31]
[322344712,1712956746742,500.0,0.00048493,31]
[322344713,1712956746859,9149.77,0.00047671,31]
[322344714,1712956746901,530.47310886,0.00046849,31]
[322344715,1712956746941,500.0,0.00046575,31]
[322344716,1712956746981,500.0,0.00047945,31]
[322344717,1712956747018,500.0,0.00048767,31]
[322344718,1712956747052,500.0,0.00046849,31]
[322344719,1712956747132,9149.77,0.00047945,31]
[322344720,1712956747171,500.0,0.00046849,31]
[322344721,1712956747242,500.0,0.00049041,31]
[322344722,1712956747413,9149.77,0.00048219,31]
[322344723,1712956747453,500.0,0.00047123,31]
[322344724,1712956747514,500.0,0.00046575,31]
[322344725,1712956747553,500.0,0.00049315,120]
[322344726,1712956747596,500.0,0.00048219,31]
[322344727,1712956747718,500.0,0.00047397,31]
[322344728,1712956748007,500.0,0.00047671,31]
[322344729,1712956748115,9149.77,0.00048493,31]
[322344730,1712956748166,500.0,0.00048493,31]
[322344731,1712956748277,500.0,0.00047945,31]
[322344732,1712956748513,500.0,0.00048767,31]
[322344733,1712956748759,9149.77,0.00048767,31]
[322344734,1712956748804,500.0,0.00049041,31]
[322344735,1712956748869,500.0,0.00046575,31]
[322344736,1712956748905,500.0,0.00046575,31]
[322344737,1712956748941,500.0,0.00048219,31]
[322344738,1712956749067,500.0,0.00049315,120]
[322344739,1712956749107,9149.77,0.00049041,31]
[322344740,1712956749145,500.0,0.00046849,31]
[322344741,1712956749195,500.0,0.00046849,31]
[322344742,1712956749237,500.0,0.00048493,31]
[322344743,1712956749277,500.0,0.00046575,30]
[322344744,1712956749389,309.65175607,0.00047123,31]
[322344745,1712956749430,9149.77,0.00049315,120]
[322344746,1712956749472,500.0,0.00047123,31]
[322344747,1712956749515,500.0,0.00048767,31]
[322344748,1712956749743,500.0,0.00047397,31]
[322344749,1712956749786,500.0,0.00049041,31]
[322344750,1712956749828,500.0,0.00046849,30]
[322344751,1712956749871,500.0,0.00046575,31]
[322344752,1712956750020,500.0,0.00047671,31]
[322344753,1712956750058,239.91137175,0.00049315,120]
[322344754,1712956750097,500.0,0.00046575,31]
[322344755,1712956750133,500.0,0.00046849,31]
[322344756,1712956750302,500.0,0.00047945,31]
[322344757,1712956750341,500.0,0.00046575,31]
[322344758,1712956750384,500.0,0.00046849,31]
[322344759,1712956750422,500.0,0.00047123,31]
[322344760,1712956750509,199.67452939,0.00047123,30]
[322344761,1712956750568,500.0,0.00048219,31]
[322344762,1712956750630,500.0,0.00047123,31]
[322344763,1712956750685,500.0,0.00046575,31]
[322344764,1712956750735,500.0,0.00047397,31]
[322344765,1712956750867,500.0,0.00048493,31]
[322344766,1712956750909,500.0,0.00046575,31]
[322344767,1712956750952,500.0,0.00047397,31]
[322344768,1712956750991,500.0,0.00047671,31]
[322344769,1712956751028,500.0,0.00046849,31]
[322344770,1712956751119,406.93509069,0.00048767,31]
[322344771,1712956751157,500.0,0.00047671,31]
[322344772,1712956751258,500.0,0.00047945,31]
[322344773,1712956751442,430.1475637,0.00046575,31]
[322344774,1712956751522,500.0,0.00048219,31]
[322344775,1712956751750,500.0,0.00047945,31]
[322344776,1712956751794,1211.59,0.00046575,31]
[322344777,1712956751841,500.0,0.00048493,31]
[322344778,1712956752034,500.0,0.00048219,31]
[322344779,1712956752079,1211.59,0.00046849,31]
[322344780,1712956752310,500.0,0.00048493,31]
[322344781,1712956752403,1211.59,0.00047123,31]
[322344782,1712956752442,500.0,0.00048767,31]
[322344783,1712956753111,1211.59,0.00047397,31]
[322344784,1712956753152,500.0,0.00046575,31]